Cogmind - Beta 15 @@@ ROGUE MODE // 2025.06.30 @ 22:11:38 Player: Asimov Result: Self-destructed Performance ------------- Evolutions (2) 1000 Regions Visited (3) 600 Robots Destroyed (30) 150 Value Destroyed (681) 681 Prototype IDs (0) 0 Alien Tech Used (0) 0 Bonus (0) 0 TOTAL SCORE: 2431 Bonus ------- None Cogmind --------- Core Integrity 423/550 Matter 118/300 Energy 240/240 System Corruption 0% Temperature Cool (9) Movement Treading (145) Location -8/Materials Parts ------- > --- POWER (2) -------- Nuclear Core > --- PROPULSION (3) --- Advanced Treads Advanced Treads Advanced Treads > --- UTILITY (3) ------ Medium Storage Unit Signal Interpreter Targeting Computer > --- WEAPON (3) ------- Light Assault Rifle > --- INVENTORY (10) --- Advanced Treads Improved Terrain Scanner Peak State ------------ > --- POWER ------------ Light Ion Engine Nuclear Core > --- PROPULSION ------- Advanced Treads Advanced Treads Advanced Treads > --- UTILITY ---------- Medium Storage Unit Signal Interpreter Light Armor Plating > --- WEAPON ----------- EM Shotgun Minigun Grenade Launcher > --- INVENTORY -------- Advanced Treads Improved Terrain Scanner Targeting Computer Light Assault Rifle [Rating: 22] Favorites ----------- Power Light Ion Engine Engine Light Ion Engine Power Core Nuclear Core Propulsion Advanced Treads Treads Advanced Treads Wheel Compact Wheel Utility Signal Interpreter Storage Medium Storage Unit Processor Signal Interpreter Protection Light Armor Plating Weapon Grenade Launcher Energy Gun EM Shotgun Ballistic Gun Minigun Launcher Grenade Launcher Build | -11 -10 -9 -8 ------- Run | Yrd Mat Mat Mat Slots Evolved 4 | . . 2 2 Power 1 | . . 1 . Propulsion 1 | . . . 1 Utility 1 | . . 1 . Weapon 1 | . . . 1 Parts Attached 23 | 6 4 8 5 Power 5 | 1 1 1 2 Engine 4 | 1 1 1 1 Core 1 | . . . 1 Reactor . | . . . . Propulsion 6 | 2 1 2 1 Treads 3 | . . 2 1 Leg . | . . . . Wheel 3 | 2 1 . . Hover . | . . . . Flight . | . . . . Utility 5 | 1 1 2 1 Device . | . . . . Storage 2 | 1 . 1 . Processor 2 | . 1 . 1 Hackware . | . . . . Protection 1 | . . 1 . Artifact . | . . . . Weapon 7 | 2 1 3 1 Energy Gun 3 | 1 . 2 . Energy Cannon . | . . . . Ballistic Gun 3 | 1 . 1 1 Ballistic Cannon . | . . . . Launcher 1 | . 1 . . Special Weapon . | . . . . Impact Weapon . | . . . . Slashing Weapon . | . . . . Piercing Weapon . | . . . . Special Melee Weapon . | . . . . Unidentified Prototypes . | . . . . Parts Lost 10 | . 2 3 5 Power 4 | . 1 1 2 Propulsion 3 | . 1 2 . Utility . | . . . . Weapon 3 | . . . 3 Highest Loss Streak 4 | . 2 2 4 To Critical Strikes 1 | . . . 1 Average Backups 4 | 1 4 6 3 Power . | . . . . Propulsion 1 | . . 1 . Utility . | . . . 1 Weapon 2 | . 2 2 . Tool/Special . | . . . . Unused Backups 4 | . 1 . 3 Power . | . . . . Propulsion 2 | . . . 2 Utility 2 | . 1 . 1 Weapon . | . . . . Tool/Special . | . . . . Average Slot Usage (%) 94 | . 96 93 92 Engine 14 | . 14 16 11 Treads 15 | . . 14 26 Wheel 8 | . 26 6 . Storage 10 | . 14 11 9 Processor 11 | . 12 11 11 Protection 7 | . . 10 6 Energy Gun 9 | . 11 9 7 Ballistic Gun 7 | . 14 1 10 Launcher 7 | . 2 11 7 Peak Build Rating 22 | 6 7 16 22 Average Rating 13 | 5 6 12 19 On Entrance 6 | . 6 6 14 Naked Turns . | . . . . Heaviest Build 29 | 13 13 25 29 Greatest Support 66 | 26 32 44 66 Greatest Overweight (x) . | . . . . Average Overweight (x) . | . . . . Largest Inventory Capacity 10 | 8 8 10 10 Average Capacity 9 | 6 8 9 10 Most Carried 8 | 2 6 8 6 Average Carried 4 | 1 4 6 3 Final Capacity 10 | 8 8 10 10 Final Carried 7 | 2 6 7 2 Class Distribution -------------------- 72% | Mutant 25% | Bomber Dominant Class ---------------- Mutant | -10/Materials Mutant | -9/Materials Bomber | -8/Materials Resources | -11 -10 -9 -8 ----------- Run | Yrd Mat Mat Mat Matter Collected 649 | 227 . 384 38 Remotely . | . . . . Salvage Created 704 | . 39 466 199 Parts 57 | . 12 36 9 Haulers Intercepted 1 | . . 1 . Recyclers Shooed 2 | . 1 . 1 Parts Field Recycled . | . . . . Retrieved Matter . | . . . . Parts Self-Destructed . | . . . . Prevented . | . . . . Kills | -11 -10 -9 -8 ------- Run | Yrd Mat Mat Mat Combat Hostiles Destroyed 24 | . 6 13 5 Guns 13 | . 1 8 4 AOE 11 | . 5 5 1 Classes Destroyed 8 | . 1 6 1 Builder 1 | . . 1 . Hauler 1 | . . 1 . Recycler 1 | . . 1 . Watcher 3 | . . 3 . Swarmer 14 | . 6 8 . Grunt 7 | . . 3 4 Duelist 1 | . . . 1 Sentry 2 | . . 2 . Best Kill Streak 6 | . 6 5 3 Combat Bots Only 6 | . 6 4 3 Max Kills in Single Turn 4 | . 3 4 2 Gunslinging 1 | . . . 1 Exploded 3 | . 3 2 1 Melee . | . . . . Uniques/NPCs Destroyed . | . . . . Combat | -11 -10 -9 -8 -------- Run | Yrd Mat Mat Mat Hostile Shots Fired 155 | . 53 45 57 Missed 41 | . 13 11 17 Hits 114 | . 40 34 40 Projectile 114 | . 40 34 40 Critical Strikes 2 | . . . 2 Damage Taken 1444 | . 351 433 660 Core 296 | . 78 91 127 Absorbed by Shields . | . . . . Core Remaining (%) 81 | 100 68 77 . Volleys Fired 80 | . 11 34 35 Largest 3 | . 2 2 3 Hottest 100 | . 60 75 100 Shots Fired 135 | . 22 48 65 Gun 109 | . 18 34 57 Cannon . | . . . . Launcher 26 | . 4 14 8 Special . | . . . . Kinetic 61 | . 11 6 44 Thermal 7 | . 7 . . Explosive 26 | . 4 14 8 Electromagnetic 41 | . . 28 13 Robot Hit Streak 18 | . 2 6 18 Robot Miss Streak 4 | . 3 3 4 Penetration Max . | . . . . Secondary Targets 1 | . . . 1 Max Gunslinging Chain 1 | . . . 1 Shots Hit Robots 81 | . 6 27 48 Core Hits 58 | . 6 29 23 Critical Kills . | . . . . Critical Parts Destroyed . | . . . . Critical Strikes 1 | . . 1 . Corrupt 1 | . . 1 . Melee Attacks . | . . . . Impact . | . . . . Slashing . | . . . . Piercing . | . . . . Sneak Attacks . | . . . . Combat Hostiles . | . . . . Follow-up Attacks . | . . . . Damage Inflicted 2342 | . 369 1099 874 Guns 897 | . 95 300 502 Cannons . | . . . . Explosions 1445 | . 274 799 372 Melee . | . . . . Ramming . | . . . . Kinetic 468 | . 61 35 372 Thermal 79 | . 34 . 45 Explosive 1400 | . 274 799 327 Electromagnetic 395 | . . 265 130 Impact . | . . . . Slashing . | . . . . Piercing . | . . . . Highest Corruption . | . . . . Average Corruption . | . . . . Corruption Purged . | . . . . Corruption Blocked . | . . . . Overload Shots . | . . . . Overflow Damage 42 | . 18 20 4 Projectiles . | . . . . Explosions 42 | . 18 20 4 Melee . | . . . . Knockbacks . | . . . . Impact . | . . . . Kinetic . | . . . . Secondary . | . . . . Self-Inflicted Damage 197 | . 31 78 88 Shots 8 | . 1 4 3 Rammed . | . . . . Targets Rammed . | . . . . Kicked . | . . . . Crushed . | . . . . Highest Temperature 270 | . . 199 270 Average Temperature 63 | . . 50 83 Received Heat Transfer 264 | . . 66 198 Effects 2 | . . . 2 Interference 2 | . . . 2 Siege Activations . | . . . . Martial Activations . | . . . . Shielding Activations . | . . . . Robots Disrupted . | . . . . Combat Hostiles . | . . . . Robots Corrupted . | . . . . Combat Hostiles . | . . . . Parts Fried . | . . . . Impact Corruptions . | . . . . Robots Melted . | . . . . Combat Hostiles . | . . . . Parts Melted 1 | . . . 1 Heat Transferred 125 | . 75 . 50 Parts Sabotaged . | . . . . Parts Stolen . | . . . . Parts Stripped . | . . . . Power Chain Reactions 1 | . . . 1 Alert | -11 -10 -9 -8 ------- Run | Yrd Mat Mat Mat Maximum Alert Level 1 | . . 1 . Low Security (%) 74 | 100 100 40 100 Level 1 25 | . . 59 . Level 2 . | . . . . Level 3 . | . . . . Level 4 . | . . . . Level 5 . | . . . . High Security . | . . . . Max Security . | . . . . Peak Influence 345 | . 133 345 130 Initial 130 | . . 51 130 Average 119 | . 19 208 83 Influence Increases 857 | . 163 526 168 Destroy 0b10 Robot/C 480 | . 120 260 100 Destroy 0b10 Robot/NC 30 | . . 30 . Destroy Leader 88 | . 20 58 10 Disable Machine 60 | . . 45 15 Destroy Structure 124 | . 23 58 43 Lose Combat Pursuer 75 | . . 75 . Influence Decreases 789 | . 40 340 409 Entered New Map 251 | . . 72 179 Time Decay 438 | . 20 238 180 Lost Part 100 | . 20 30 50 Squads Dispatched 5 | . . 2 3 Investigation 1 | . . . 1 Extermination . | . . . . Reinforcement 4 | . . 2 2 Assault . | . . . . Garrison . | . . . . Intercept . | . . . . Searches Triggered . | . . . . Construction Impeded 1 | . . . 1 Haulers Reinforced . | . . . . Active Scanning Responses . | . . . . Cargo Convoy Interrupts . | . . . . Stealth | -11 -10 -9 -8 --------- Run | Yrd Mat Mat Mat Distress Signals 8 | . 2 3 3 Communications Jammed . | . . . . Distress Signals . | . . . . Times Spotted 46 | . 8 23 15 Peak Tracking Total 9 | . 6 6 9 Tactical Retreats 5 | . . 5 . Traps | -11 -10 -9 -8 ------- Run | Yrd Mat Mat Mat Traps Triggered 1 | . . . 1 Indirectly . | . . . . Trap Hack Attempts . | . . . . Triggered . | . . . . Disarmed . | . . . . Reprogrammed . | . . . . Reused . | . . . . Traps Extracted . | . . . . Installed . | . . . . Triggered . | . . . . Machines | -11 -10 -9 -8 ---------- Run | Yrd Mat Mat Mat Machines Disabled 4 | . . 3 1 Max in Single Turn 1 | . . 1 1 Machines Repaired . | . . . . Machines Dismantled . | . . . . Machines Sabotaged . | . . . . Overloaded Fab Kills . | . . . . Hacking | -11 -10 -9 -8 --------- Run | Yrd Mat Mat Mat Machines Accessed 2 | . . 1 1 Terminals 1 | . . 1 . Fabricators . | . . . . Repair Stations . | . . . . Recycling Units . | . . . . Scanalyzers 1 | . . . 1 Garrison Access . | . . . . Total Hacks 3 | . . 1 2 Successful 2 | . . . 2 Failed 1 | . . 1 . Catastrophic . | . . . . Database Lockouts . | . . . . Manual . | . . . . Terminals 1 | . . 1 . Fabricators . | . . . . Repair Stations . | . . . . Recycling Units . | . . . . Scanalyzers 2 | . . . 2 Garrison Access . | . . . . Terminal Hacks . | . . . . Fabricator Hacks . | . . . . Repair Station Hacks . | . . . . Recycling Unit Hacks . | . . . . Scanalyzer 2 | . . . 2 Insert Component 1 | . . . 1 Analyze 1 | . . . 1 Garrison Access Hacks . | . . . . Unauthorized Hacks . | . . . . Terminals . | . . . . Fabricators . | . . . . Repair Stations . | . . . . Recycling Units . | . . . . Scanalyzers . | . . . . Garrison Access . | . . . . Data Cores Recovered . | . . . . Used . | . . . . Hacking Detections 1 | . . 1 . Full Trace Events . | . . . . Feedback Events . | . . . . Feedback Blocked . | . . . . Robot Schematics Acquired . | . . . . Robots Built . | . . . . Authchips . | . . . . Time . | . . . . Total Robot Build Rating . | . . . . Part Schematics Acquired 1 | . . . 1 Parts Built . | . . . . Authchips . | . . . . Time . | . . . . Total Part Build Rating . | . . . . Parts Repaired . | . . . . Time . | . . . . Parts Recycled . | . . . . Recycled Matter . | . . . . Retrieved Matter . | . . . . Retrieved Components . | . . . . Parts Scanalyzed 1 | . . . 1 Part Schematics Acquired 1 | . . . 1 Parts Damaged . | . . . . Bothacking | -11 -10 -9 -8 ------------ Run | Yrd Mat Mat Mat Used RIF Installer . | . . . . Robots Hacked . | . . . . Non-combat . | . . . . Combat . | . . . . Robot Hacks Applied . | . . . . Relay Couplers Released . | . . . . Fabnet Peak Effective % . | . . . . Robots Rewired . | . . . . Allies Hacked . | . . . . Hacks Repelled . | . . . . Allies | -11 -10 -9 -8 -------- Run | Yrd Mat Mat Mat Total Allies . | . . . . Largest Group . | . . . . Highest-Rated Group . | . . . . Highest-Rated Ally . | . . . . Total Orders . | . . . . Ally Attacks . | . . . . Total Damage . | . . . . Kills . | . . . . Allies Corrupted . | . . . . Allies Melted . | . . . . Intel | -11 -10 -9 -8 ------- Run | Yrd Mat Mat Mat Active Infowar (turns) . | . . . . Robot Analysis Total . | . . . . Derelict Logs Recovered . | . . . . Drone Launches . | . . . . Drone Recoveries . | . . . . Exploration | -11 -10 -9 -8 ------------- Run | Yrd Mat Mat Mat Turns Passed 1171 | 71 233 506 361 Spaces Moved 774 | 69 201 322 182 Core 5 | 5 . . . Treads 383 | . . 201 182 Legs . | . . . . Wheels 386 | 64 201 121 . Hover . | . . . . Flight . | . . . . Fastest Speed 50 | 50 90 90 145 Average Speed 117 | 86 93 124 145 Slowest Speed 145 | 90 100 145 145 Overloaded Moves . | . . . . Propulsion Burnouts . | . . . . Robots Hopped . | . . . . Potential Cave-ins . | . . . . Cave-ins Triggered . | . . . . Exploration Rate (%) 20 | 4 30 31 17 Regions Visited 3 Branch Regions . Pre-discovered Areas . | . . . . Known Exits Taken 2 | . 1 1 . Unknown Exits Taken 1 | 1 . . . Scrap Searched . | . . . . Spaces Dug . | . . . . Terrain Destroyed 138 | . 27 72 39 Melee . | . . . . Projectile . | . . . . AOE 138 | . 27 72 39 Terrain Rammed . | . . . . Walls Destroyed . | . . . . Machines Disabled . | . . . . Actions | -11 -10 -9 -8 --------- Run | Yrd Mat Mat Mat Total 910 | 76 222 381 231 Wait 3 | . . 3 . Move 771 | 68 200 321 182 Hop . | . . . . Pick Up 20 | 2 6 9 3 Fast Attach 7 | 6 1 . . Attach 14 | . 1 7 6 Detach 2 | . . 1 1 Swap 6 | . 2 3 1 Drop 7 | . 1 3 3 Fire 80 | . 11 34 35 Melee . | . . . . Ram . | . . . . Kick . | . . . . Crush . | . . . . Escape Stasis . | . . . . Rewire . | . . . . Trap . | . . . . Miscellaneous . | . . . . Route ------- -11/Scrapyard -10/Materials -9/Materials -8/Materials History --------- Turn | Location | Event 31 | -11/Scrapyard | Discovered new exit (range 16) 72 | -11/Scrapyard | Entered Materials 221 | -10/Materials | Discovered new exit (range 6) 304 | -10/Materials | Identified exit to Materials 305 | -10/Materials | Entered another Materials area 305 | -9/Materials | Evolved 2 slots: Power x1, Utility x1 334 | -9/Materials | Build established: Mutant 792 | -9/Materials | Discovered new exit (range 12) 809 | -9/Materials | Identified exit to Materials 811 | -9/Materials | Entered another Materials area 811 | -8/Materials | Evolved 2 slots: Propulsion x1, Weapon x1 1172 | -8/Materials | Self-destructed Last Messages --------------- 01146_ Minigun destroyed. 01147_ K-01 Serf collects debris. 01149_ Penetrated by Slug. 01151_ K-01 Serf collects debris. 01152_ Penetrated by Slug. 01154_ K-01 Serf collects debris. 01155_ Penetrated by Slug. 01155_ U-05 Engineer destroyed. 01158_ K-01 Serf collects debris. 01158_ Penetrated by Slug. 01163_ K-01 Serf collects debris. 01164_ O-24 Administrator sends out distress signal. 01164_ Penetrated by Slug. 01165_ K-01 Serf collects debris. 01165_ W-25 Informer sends out distress signal. 01166_ K-01 Serf collects debris. 01167_ Penetrated by Slug. 01168_ K-01 Serf collects debris. 01171_ K-01 Serf cleans the Terminal. Map ----- +----------------------------------------------------+ | ?????????????????????????????????????????????????? | | ?????????????????????????????????????????????????? | | ?????????????????????????????????????????????????? | | ?????????????????????????????????????????????????? | | ?????????????????????????????????????????????????? | | ?????????????????????????????????????????????????? | | ?????????????????????????????????????????????????? | | ?????????????????????????????????????????????????? | | ?????????????????????????????????????????????????? | | ?????????????????????????????????????????????????? | | ?????????????????????????????????????????????????? | | ?????????????????????????????????????????????????? | | ???????????????????########??????????????????????? | | ????????????????????ww ###+### ??????????????? | | ???????????????????? ?????????????? | | ????????????????????? g ?????????????? | | ?????????????????????g a ""?????????????? | | ?????????????????????#g ""?????????????? | | ?????????????????????# g ""?????????????? | | ?????????????????????# ! ""?????????????? | | ?????????????????????#" ""?????????????? | | ?????????????????????#" u ???????????????? | | ?????????????????????#""h ! ?????????????????? | | ?????????????????????# [% ???????????????????? | | ?????????????????????# | %k?????????????????????? | | ?????????????????????#u!%@###????????????????????? | | ?????????????????????# k k T#????????????????????? | | ???????????????#??#### ""#????????????????????? | | ???????????????# ## ##u ###????????????????????? | | ???????????""" # ##?????????????????????? | | ?????????? ###????????????????????? | | ???????????""" # !# #????????????????????? | | ????????????"" #+##+#########????????????????????? | | ???????????????# %= ! #????????????????????? | | ???????????????# =[ ##???????????????????? | | ????????????#### #???????????????????? | | ????????##### # ##???????????????????? | | ????????# !# #????????????????????? | | ????????#% ##+#########+###??????????????????? | | ????????# ! " # % + #??????????????????? | | ????????# # ### # #??????????????????? | | ????????# ! " # ##### ! #??????????????????? | | ????????# # ##???# #??????????????????? | | ?????######+#### ###### #??????????????????? | | ?????# # #??????????????????? | | ?????# + ! #??????????????????? | | ?????# # #??????????????????? | | ?????# ########+#####+# #??????????????????? | | ?????# #??????????????# #??????????????????? | | ?????# #??????????????# #??????????????????? | +----------------------------------------------------+ Best States ------------- Heat Dissipation 31 Energy Generation 19 Energy Capacity 265 Matter Stores 300 Matter Capacity 300 Sight Range 16 Terrain Scan Density 10 Armor Coverage 150 Evasion (%) 44 Targeting Accuracy 5 Recoil Reduction 3 Item Schematics ----------------- Adv. Treads | -8/Materials | Scanalyzed Robot Schematics ------------------ None Fabricated ------------ Nothing Repaired ---------- Nothing Alien Tech Used ----------------- None Achievements -------------- None Challenges ------------ None Game ------ Seed NuclearRestorationMallet Manual? 0 Play Time 00:14:14 Cumulative 11.5 hours Start 2025.06.30 @ 21:55:22 End 2025.06.30 @ 22:11:38 Sessions 1 Manual Loads 0 Difficulty Rogue Special Mode None Game No. 33 Rogue 33 Adventurer 0 Explorer 0 Win Type - Total 0 Types 0/0/0/0/0/0/0/0/0/0 Lore% 9 Gallery% 16 Achievement% 12 Wizard Run 0 Options --------- Layout 1 ASCII 0 Keyboard 0 Movement Arrows Keybinds 0 Fullscreen 1 Font 24/Smallcaps Map View 50x35 Zoom Use 0% Tactical HUD 1 Map Filters NONE Filters NONE Steam 1 RUN: 6189dbba-5121-4e09-af7f-65a6b27c8fe6